[Event "WTCC-50 2018"]
[Site "Radebeul"]
[Date "2018.07.09"]
[Round "3"]
[White "Wong, Meng Kong"]
[Black "Schmidt, Reiner"]
[Result "1-0"]
[ECO "C00"]
[WhiteElo "2248"]
[BlackElo "2185"]
[Annotator "NA"]
[PlyCount "78"]
[EventDate "2018.07.07"]
[EventType "team-tourn"]
[EventCountry "GER"]
[SourceTitle "playchess.com"]
[Source "ChessBase"]
[SourceQuality "1"]
[TimeControl "40/5400+30:1800+30"]

1. e4 {[%emt 0:00:00]} e6 {[%emt 0:00:00]} 2. b3 {[%emt 0:00:00]} b6 {[%emt 0:00:00]} 3. Bb2 {[%emt 0:00:13]} Bb7 {[%emt 0:00:04]} 4. Qe2 {[%emt 0:00:46]} Nf6 {[%emt 0:01:40]} 5. d3 {[%emt 0:01:57]} Bb4+ {[%emt 0:04:44]} 6. Nd2 {[%emt 0:03:24]} d5 {[%emt 0:03:16]} 7. c3 {[%emt 0:03:14]} Be7 {[%emt 0:01:27]} 8. e5 {[%emt 0:02:25]} Nfd7 {[%emt 0:00:31]} 9. f4 {[%emt 0:02:04]} c5 {[%emt 0:01:51]} 10. Ngf3 {[%emt 0:03:41]} Nc6 {[%emt 0:01:01]} 11. h4 {[%emt 0:02:13]} Nf8 {[%emt 0:11:28]} 12. a3 {[%emt 0:04:13]} a5 {[%emt 0:06:27]} 13. h5 {[%emt 0:01:37]} f5 {[%emt 0:04:47]} 14. a4 {[%emt 0:05:04]} Ba6 {[%emt 0:09:28]} 15. Qf2 {[%emt 0:07:03]} Nd7 {[%emt 0:03:43]} 16. Be2 {[%emt 0:05:57]} b5 {[%emt 0:02:17]} 17. axb5 {[%emt 0:00:22]} Bxb5 {[%emt 0:00:04]} 18. c4 {[%emt 0:00:17]} Ba6 {[%emt 0:00:24]} 19. cxd5 {[%emt 0:08:58]} exd5 {[%emt 0:01:17]} 20. Ba3 {[%emt 0:01:38]} Qb6 $11 {[%emt 0:06:03]} 21. d4 {[%emt 0:07:59]} Bxe2 {[%emt 0:05:01]} 22. Qxe2 {[%emt 0:00:34]} O-O {[%emt 0:10:28]} 23. O-O {[%emt 0:05:49]} Nd8 {[%emt 0:08:47]} 24. Qf2 {[%emt 0:04:13]} Ne6 {[%emt 0:01:39]} 25. dxc5 {[%emt 0:00:12]} Bxc5 {[%emt 0:02:19]} 26. Bxc5 {[%emt 0:00:06]} Qxc5 {[%emt 0:00:29]} 27. g3 {[%emt 0:02:40]} Rfb8 {[%emt 0:04:08]} 28. Nh4 {[%emt 0:06:02]} Qxf2+ {[%emt 0:02:49]} 29. Rxf2 {[%emt 0:04:03]} Nd4 {[%emt 0:00:32]} 30. Ra4 {[%emt 0:01:10]} Nxb3 {[%emt 0:01:13]} 31. Nxf5 {[%emt 0:00:29]} Ndc5 {[%emt 0:01:03]} 32. Ra3 {[%emt 0:00:22]} Ra7 {[%emt 0:02:10]} 33. Nxb3 {[%emt 0:00:58]} Nxb3 {[%emt 0:03:05]} 34. Rc2 {[%emt 0:02:04]} d4 {[%emt 0:00:30]} 35. e6 {[%emt 0:03:17]} h6 {[%emt 0:01:01]} 36. Rb2 {[%emt 0:01:10]} Rab7 {[%emt 0:00:18]} 37. e7 {[%emt 0:01:59]} a4 {[%emt 0:01:46]} 38. Rxa4 {[%emt 0:01:17]} Nc5 {[%emt 0:00:00]} 39. Rxb7 {[%emt 0:00:00]} Nxb7 1-0

[Event "WTCC-50 2018"]
[Site "Radebeul"]
[Date "2018.07.09"]
[Round "3"]
[White "Grawe, Christian"]
[Black "Emms, John M"]
[Result "1/2-1/2"]
[ECO "B32"]
[WhiteElo "2231"]
[BlackElo "2488"]
[Annotator "ChessBase"]
[PlyCount "164"]
[EventDate "2018.07.07"]
[EventType "team-tourn"]
[EventCountry "GER"]
[SourceTitle "playchess.com"]
[Source "ChessBase"]
[SourceQuality "1"]
[TimeControl "40/5400+30:1800+30"]

1. e4 {[%emt 0:00:00]} c5 {[%emt 0:00:00]} 2. Nf3 {[%emt 0:00:00]} Nc6 {[%emt 0:00:03]} 3. d4 {[%emt 0:00:00]} cxd4 {[%emt 0:00:21]} 4. Nxd4 {[%emt 0:00:02]} Qb6 {[%emt 0:01:41]} 5. Nb5 {[%emt 0:03:11]} Nf6 {[%emt 0:19:23]} 6. Be3 {[%emt 0:10:56]} Qd8 {[%emt 0:01:41]} 7. N1c3 {[%emt 0:01:57]} a6 {[%emt 0:01:47]} 8. Nd4 {[%emt 0:00:23]} e6 {[%emt 0:03:49]} 9. Nxc6 {[%emt 0:09:33]} bxc6 {[%emt 0:00:32]} 10. Bd3 {[%emt 0:05:18]} d5 {[%emt 0:02:21]} 11. Bg5 {[%emt 0:22:26]} h6 {[%emt 0:17:00]} 12. Bh4 {[%emt 0:01:40]} Rb8 {[%emt 0:16:44]} 13. O-O {[%emt 0:02:15]} Be7 {[%emt 0:01:34]} 14. Bg3 {[%emt 0:07:14]} Rxb2 {[%emt 0:05:19]} 15. Na4 {[%emt 0:00:29]} Rb7 {[%emt 0:03:58]} 16. exd5 {[%emt 0:02:51]} cxd5 {[%emt 0:05:44]} 17. Bxa6 {[%emt 0:11:50]} Ra7 {[%emt 0:01:28]} 18. Bb5+ {[%emt 0:01:16]} Bd7 {[%emt 0:00:08]} 19. Qd4 {[%emt 0:07:05]} Ra5 {[%emt 0:03:08]} 20. Bxd7+ {[%emt 0:02:40]} Qxd7 {[%emt 0:00:04]} 21. Nb2 {[%emt 0:01:16]} O-O {[%emt 0:01:23]} 22. Nd3 {[%emt 0:01:05]} Rfa8 {[%emt 0:02:14]} 23. Ne5 {[%emt 0:00:51]} Qc8 {[%emt 0:02:18]} 24. c4 {[%emt 0:03:14]} Rxa2 {[%emt 0:01:51]} 25. Rac1 {[%emt 0:00:01]} dxc4 {[%emt 0:02:41]} 26. Rxc4 {[%emt 0:00:26]} Qb7 {[%emt 0:00:17]} 27. Nc6 {[%emt 0:01:25]} Nd5 {[%emt 0:00:57]} 28. h3 {[%emt 0:01:10]} Bf6 {[%emt 0:00:47]} 29. Be5 {[%emt 0:00:57]} Bxe5 {[%emt 0:00:47]} 30. Qxe5 {[%emt 0:00:20]} Qb2 {[%emt 0:00:54]} 31. Qe4 {[%emt 0:01:45]} Ra1 {[%emt 0:01:16]} 32. Rxa1 {[%emt 0:00:16]} Qxa1+ {[%emt 0:00:31]} 33. Kh2 {[%emt 0:00:04]} Qf6 {[%emt 0:00:28]} 34. Rc2 {[%emt 0:01:18]} g6 {[%emt 0:01:10]} 35. g3 {[%emt 0:00:11]} Rc8 {[%emt 0:01:19]} 36. Kg2 {[%emt 0:00:24]} Kg7 {[%emt 0:00:26]} 37. Nb4 {[%emt 0:01:21]} Rxc2 {[%emt 0:01:09]} 38. Nxc2 {[%emt 0:00:02]} Qc3 {[%emt 0:00:27]} 39. Nd4 {[%emt 0:00:40]} Qc7 {[%emt 0:00:39]} 40. h4 {[%emt 0:01:01]} Qd6 {[%emt 0:00:58]} 41. Nf3 {[%emt 0:15:24]} Nf6 {[%emt 0:05:31]} 42. Qc4 {[%emt 0:00:47]} e5 {[%emt 0:06:00]} 43. Qc3 {[%emt 0:01:07]} Ng4 {[%emt 0:00:48]} 44. h5 {[%emt 0:04:58]} gxh5 {[%emt 0:06:45]} 45. Nh4 {[%emt 0:01:19]} Qd5+ {[%emt 0:00:22]} 46. Kg1 {[%emt 0:01:14]} Qe4 {[%emt 0:00:36]} 47. Qc5 {[%emt 0:03:56]} Kh7 {[%emt 0:01:09]} 48. Qa7 {[%emt 0:00:10]} Qd5 {[%emt 0:01:36]} 49. Qb6 {[%emt 0:04:36]} e4 {[%emt 0:03:15]} 50. Qb1 {[%emt 0:01:06]} Qd4 {[%emt 0:03:27]} 51. Qc2 {[%emt 0:00:26]} Ne5 {[%emt 0:00:39]} 52. Kg2 {[%emt 0:00:45]} Nd3 {[%emt 0:00:15]} 53. Qe2 {[%emt 0:00:26]} Qd5 {[%emt 0:01:05]} 54. Qe3 {[%emt 0:00:21]} Qe5 {[%emt 0:00:32]} 55. Kh2 {[%emt 0:00:44]} Kg7 {[%emt 0:00:50]} 56. Kg2 {[%emt 0:00:26]} Qd5 {[%emt 0:00:16]} 57. Kh2 {[%emt 0:00:22]} Qc5 {[%emt 0:01:51]} 58. Qxe4 {[%emt 0:00:56]} Nxf2 {[%emt 0:00:53]} 59. Qf4 {[%emt 0:00:51]} Ng4+ {[%emt 0:00:31]} 60. Kh3 {[%emt 0:00:12]} Qg1 {[%emt 0:01:30]} 61. Qd4+ {[%emt 0:00:31]} Qxd4 {[%emt 0:00:18]} 62. Nf5+ {[%emt 0:00:01]} Kg6 {[%emt 0:00:38]} 63. Nxd4 {[%emt 0:00:02]} Ne3 {[%emt 0:00:17]} 64. Nf3 {[%emt 0:00:26]} Nf5 {[%emt 0:00:41]} 65. Ne5+ {[%emt 0:00:54]} Kf6 {[%emt 0:00:33]} 66. Nf3 {[%emt 0:00:05]} Ke6 {[%emt 0:00:45]} 67. Ne1 {[%emt 0:00:19]} Kd5 {[%emt 0:00:33]} 68. g4 {[%emt 0:02:05]} hxg4+ {[%emt 0:00:32]} 69. Kxg4 {[%emt 0:00:01]} Ng7 {[%emt 0:00:26]} 70. Nf3 {[%emt 0:00:21]} f5+ {[%emt 0:00:23]} 71. Kf4 {[%emt 0:00:17]} Ke6 {[%emt 0:00:07]} 72. Kg3 {[%emt 0:00:45]} Kf7 {[%emt 0:01:06]} 73. Kf4 {[%emt 0:00:23]} Kf6 {[%emt 0:00:13]} 74. Kg3 {[%emt 0:00:07]} Ne6 {[%emt 0:01:03]} 75. Kh4 {[%emt 0:00:33]} Ng5 {[%emt 0:00:27]} 76. Ne1 {[%emt 0:00:05]} Kg6 {[%emt 0:00:52]} 77. Ng2 {[%emt 0:00:35]} Nf7 {[%emt 0:00:38]} 78. Nf4+ {[%emt 0:00:39]} Kf6 {[%emt 0:00:06]} 79. Kh5 {[%emt 0:00:19]} Ke5 {[%emt 0:00:15]} 80. Nh3 {[%emt 0:00:25]} Kf6 {[%emt 0:01:15]} 81. Nf4 {[%emt 0:00:08]} Kg7 {[%emt 0:00:35]} 82. Ne6+ {[%emt 0:00:26]} Kf6 {[%emt 0:00:25]} 1/2-1/2

[Event "WTCC-50 2018"]
[Site "Radebeul"]
[Date "2018.07.09"]
[Round "3"]
[White "Bruch, Jochen"]
[Black "Leow, Leslie M"]
[Result "1/2-1/2"]
[ECO "A04"]
[WhiteElo "2222"]
[BlackElo "2419"]
[Annotator "NA RC"]
[PlyCount "37"]
[EventDate "2018.07.07"]
[EventType "team-tourn"]
[EventCountry "GER"]
[SourceTitle "playchess.com"]
[Source "ChessBase"]
[SourceQuality "1"]
[TimeControl "40/5400+30:1800+30"]

1. Nf3 f5 {[%emt 0:00:35]} 2. g3 {[%emt 0:00:05]} Nf6 {[%emt 0:00:42]} 3. Bg2 {[%emt 0:00:03]} g6 {[%emt 0:00:07]} 4. O-O {[%emt 0:00:07]} Bg7 {[%emt 0:00:05]} 5. d3 {[%emt 0:00:06]} O-O {[%emt 0:01:14]} 6. e4 {[%emt 0:00:27]} fxe4 {[%emt 0:13:16]} 7. dxe4 {[%emt 0:01:17]} d6 {[%emt 0:01:13]} 8. e5 {[%emt 0:05:17]} Ng4 {[%emt 0:00:18]} 9. exd6 {[%emt 0:00:50]} exd6 {[%emt 0:01:45]} 10. Bg5 {[%emt 0:03:51]} Qd7 {[%emt 0:06:09]} 11. c3 {[%emt 0:06:27]} Nc6 {[%emt 0:01:38]} 12. Na3 {[%emt 0:02:09]} Qf7 {[%emt 0:03:24]} 13. Nc2 {[%emt 0:06:28]} Nge5 {[%emt 0:12:25]} 14. Nxe5 {[%emt 0:09:20]} Nxe5 {[%emt 0:01:38]} 15. f3 {[%emt 0:01:57]} Be6 {[%emt 0:05:58]} 16. b3 {[%emt 0:11:21]} Bd5 {[%emt 0:03:29]} 17. Ne1 {[%emt 0:07:06]} Rae8 {[%emt 0:02:29]} 18. Qd2 {[%emt 0:05:36]} Nd7 {[%emt 0:05:11]} 19. Nd3 {[%emt 0:04:36]} 1/2-1/2

[Event "WTCC-50 2018"]
[Site "Radebeul"]
[Date "2018.07.09"]
[Round "3"]
[White "Rosenberger, Berthold"]
[Black "Weitzer, Steffen"]
[Result "1/2-1/2"]
[ECO "A95"]
[WhiteElo "2217"]
[BlackElo "2288"]
[Annotator "NA"]
[PlyCount "92"]
[EventDate "2018.07.07"]
[EventType "team-tourn"]
[EventCountry "GER"]
[SourceTitle "playchess.com"]
[Source "ChessBase"]
[SourceQuality "1"]
[TimeControl "40/5400+30:1800+30"]

1. d4 {[%emt 0:00:00]} f5 {[%emt 0:00:00]} 2. g3 {[%emt 0:00:26]} Nf6 {[%emt 0:00:10]} 3. Bg2 {[%emt 0:00:07]} e6 {[%emt 0:01:49]} 4. c4 {[%emt 0:01:25]} Be7 {[%emt 0:02:02]} 5. Nc3 {[%emt 0:02:01]} d5 {[%emt 0:06:07]} 6. Nf3 {[%emt 0:09:20]} O-O {[%emt 0:02:48]} 7. O-O {[%emt 0:00:57]} c6 {[%emt 0:01:47]} 8. Qb3 {[%emt 0:02:34]} Ne4 {[%emt 0:11:16] A95: Classical Dutch: Classical Stonewall: 7 Nc3 c6} (8... Kh8 9. Bf4 Nbd7 10. Rfd1 Ne4 11. Rac1 Nd6 12. cxd5 exd5 13. Ne5 Nb6 14. Qc2 g5 15. Bd2 Nbc4 16. Be1 {1-0 (48) Balog,I (2542)-Gleizerov,E (2565) Senta 2012}) 9. Ne5 {[%emt 0:05:01]} Nd6 $146 {[%emt 0:01:47]} ({Predecessor:} 9... Qb6 10. Be3 Nd7 11. Nxd7 Bxd7 12. Nxe4 fxe4 {½-½ (12) Pavlovic,G (2389)-Stojanovic,D (2367) Kraljevo 2014}) 10. f3 {[%emt 0:13:09]} Nf7 {[%emt 0:06:02]} 11. Nxf7 {[%emt 0:11:02]} Rxf7 {[%emt 0:04:07]} 12. Rd1 {[%emt 0:00:08]} Bf6 {[%emt 0:04:21]} 13. Kh1 {[%emt 0:02:48]} Nd7 {[%emt 0:14:32]} 14. cxd5 {[%emt 0:03:16]} exd5 {[%emt 0:03:42]} 15. e4 {[%emt 0:00:47]} fxe4 {[%emt 0:02:05]} 16. fxe4 {[%emt 0:00:17]} dxe4 {[%emt 0:00:43]} 17. Nxe4 {[%emt 0:06:19]} Nb6 {[%emt 0:03:01]} 18. Bf4 {[%emt 0:08:09]} Be7 {[%emt 0:06:06]} 19. Nc3 {[%emt 0:04:51]} Bg4 {[%emt 0:01:40]} 20. Re1 {[%emt 0:01:56]} Qd7 $14 {[%emt 0:01:50]} 21. d5 {[%emt 0:03:05]} Bf8 {[%emt 0:01:50]} 22. dxc6 {[%emt 0:02:57]} bxc6 {[%emt 0:00:10]} 23. Ne4 {[%emt 0:01:23]} Be6 {[%emt 0:00:34]} 24. Qc2 {[%emt 0:00:11]} Bd5 {[%emt 0:02:01]} 25. Ng5 {[%emt 0:04:10]} Rf5 {[%emt 0:01:50]} 26. Rad1 {[%emt 0:01:33]} g6 {[%emt 0:01:47]} 27. Ne4 {[%emt 0:03:55]} Re8 {[%emt 0:05:28]} 28. Nc3 {[%emt 0:00:20]} Rxe1+ {[%emt 0:01:13]} 29. Rxe1 {[%emt 0:00:13]} Bxg2+ {[%emt 0:00:31]} 30. Qxg2 {[%emt 0:00:21]} Nd5 {[%emt 0:00:19]} 31. Nxd5 {[%emt 0:02:51]} Rxd5 {[%emt 0:04:52]} 32. Qe2 {[%emt 0:03:53]} g5 {[%emt 0:04:15]} 33. Be5 {[%emt 0:01:17]} Bb4 {[%emt 0:02:38]} 34. Bc3 {[%emt 0:02:38]} Bxc3 {[%emt 0:00:13]} 35. bxc3 {[%emt 0:00:07]} Rd2 {[%emt 0:00:32]} 36. Qe8+ {[%emt 0:01:24]} Qxe8 {[%emt 0:00:22]} 37. Rxe8+ {[%emt 0:00:05]} Kf7 {[%emt 0:00:06]} 38. Rc8 {[%emt 0:00:22]} Rxa2 {[%emt 0:00:25]} 39. Rc7+ {[%emt 0:02:32]} Kg8 {[%emt 0:01:44]} 40. g4 {[%emt 0:00:44]} a5 {[%emt 0:00:09]} 41. Rxc6 {[%emt 0:31:05]} a4 {[%emt 0:30:28]} 42. Ra6 {[%emt 0:00:25]} a3 {[%emt 0:02:48]} 43. c4 {[%emt 0:00:00]} Kf7 {[%emt 0:00:00]} 44. c5 {[%emt 0:00:00]} Ke7 {[%emt 0:00:00]} 45. h3 {[%emt 0:00:00]} Kd7 {[%emt 0:00:00]} 46. c6+ {[%emt 0:00:00]} Kc7 {[%emt 0:00:00]} 1/2-1/2

[Event "WTCC-50 2018"]
[Site "Radebeul"]
[Date "2018.07.09"]
[Round "3"]
[White "Teo, Kok Siong"]
[Black "Kaster, Juergen"]
[Result "1-0"]
[ECO "A40"]
[WhiteElo "2213"]
[BlackElo "2117"]
[Annotator "NA"]
[PlyCount "139"]
[EventDate "2018.07.07"]
[EventType "team-tourn"]
[EventCountry "GER"]
[SourceTitle "playchess.com"]
[Source "ChessBase"]
[SourceQuality "1"]
[TimeControl "40/5400+30:1800+30"]

1. d4 {[%emt 0:00:00]} c6 {[%emt 0:00:22]} 2. c4 {[%emt 0:00:20]} d6 {[%emt 0:00:34]} 3. Nc3 {[%emt 0:02:06]} g6 {[%emt 0:00:25]} 4. e4 {[%emt 0:00:35]} Bg7 {[%emt 0:00:14]} 5. Be2 {[%emt 0:02:02]} Qc7 {[%emt 0:01:16] A42: Modern Defence: Averbakh Variation} (5... e5 6. Be3 Nd7 7. d5 c5 8. g4 Ndf6 9. h4 h5 10. g5 Nd7 11. Nf3 a6 12. Rb1 Ne7 13. a3 {1-0 (37) Gagunashvili,M (2579)-Paichadze,L (2561) Tbilisi 2015}) 6. f4 {[%emt 0:01:05]} Bd7 $146 {[%emt 0:09:54]} (6... e5 $14) ({Predecessor:} 6... a6 7. Be3 Nh6 8. g4 Nd7 9. g5 Ng8 10. Nf3 h6 11. Qc2 hxg5 12. Nxg5 Ndf6 13. O-O-O {0-1 (41) Schirmbeck,H (2195)-Wetscherek,G (2041) Austria 2017}) 7. Nf3 {[%emt 0:00:47]} Nf6 {[%emt 0:02:03]} 8. O-O {[%emt 0:02:44]} O-O {[%emt 0:00:52]} 9. e5 {[%emt 0:05:08]} Ng4 {[%emt 0:06:12]} 10. Kh1 {[%emt 0:11:12]} Na6 {[%emt 0:13:35]} 11. Ng5 {[%emt 0:06:36]} Nh6 $1 {[%emt 0:02:27]} 12. Be3 {[%emt 0:10:16]} Rae8 {[%emt 0:07:06]} 13. Bg1 {[%emt 0:00:58]} f6 {[%emt 0:02:11]} 14. exd6 {[%emt 0:07:14]} exd6 {[%emt 0:05:33]} 15. Nge4 {[%emt 0:00:10]} f5 {[%emt 0:01:43]} 16. Ng5 {[%emt 0:00:55]} Bf6 {[%emt 0:03:35]} 17. Qd2 {[%emt 0:02:37]} Nf7 {[%emt 0:04:20]} 18. Nf3 {[%emt 0:03:55]} Qd8 {[%emt 0:01:42]} 19. Rad1 {[%emt 0:05:08]} Nc7 {[%emt 0:02:27]} 20. Bd3 {[%emt 0:03:12]} Kg7 {[%emt 0:00:30]} 21. Bc2 {[%emt 0:00:59]} Be6 {[%emt 0:01:39]} 22. d5 {[%emt 0:01:26]} cxd5 {[%emt 0:00:25]} 23. cxd5 {[%emt 0:00:42]} Bd7 {[%emt 0:01:17]} 24. Bxa7 {[%emt 0:02:37]} Nb5 {[%emt 0:01:56]} 25. Bg1 {[%emt 0:07:27]} Qc7 {[%emt 0:08:50]} 26. Nd4 {[%emt 0:02:14]} Nxc3 {[%emt 0:06:12]} 27. bxc3 {[%emt 0:00:14]} Re7 {[%emt 0:04:55]} 28. Rfe1 {[%emt 0:03:40]} Rc8 {[%emt 0:01:10]} 29. Rxe7 {[%emt 0:00:41]} Bxe7 {[%emt 0:00:09]} 30. Ba4 {[%emt 0:00:13]} Nd8 {[%emt 0:04:14]} 31. Bxd7 {[%emt 0:01:50]} Qxd7 {[%emt 0:00:03]} 32. Re1 {[%emt 0:01:48]} Bf6 {[%emt 0:00:45]} 33. h3 {[%emt 0:06:09]} Qc7 {[%emt 0:01:06]} 34. Nb5 {[%emt 0:00:59]} Qd7 {[%emt 0:00:56]} 35. Qd3 {[%emt 0:00:21]} Kf7 {[%emt 0:00:36]} 36. c4 {[%emt 0:02:12]} Kg7 {[%emt 0:00:57]} 37. Bd4 {[%emt 0:01:32]} Bxd4 {[%emt 0:01:37]} 38. Qxd4+ {[%emt 0:01:19]} Kg8 {[%emt 0:00:11]} 39. Qf6 {[%emt 0:00:21]} Qf7 {[%emt 0:02:09]} 40. Qxf7+ {[%emt 0:00:32]} Nxf7 {[%emt 0:00:12]} 41. Rc1 {[%emt 0:13:26]} Kf8 {[%emt 0:00:08]} 42. Kg1 {[%emt 0:01:09]} Ke7 {[%emt 0:00:09]} 43. Kf2 {[%emt 0:00:24]} Kd7 {[%emt 0:01:16]} 44. Ke3 {[%emt 0:01:06]} Re8+ {[%emt 0:02:27]} 45. Kd3 {[%emt 0:00:11]} Re4 {[%emt 0:01:22]} 46. Rf1 {[%emt 0:00:59]} Nh6 {[%emt 0:03:53]} 47. g4 {[%emt 0:02:35]} Re8 {[%emt 0:00:38]} 48. g5 {[%emt 0:00:20]} Nf7 {[%emt 0:00:47]} 49. a4 {[%emt 0:04:57]} Ra8 {[%emt 0:01:08]} 50. Nc3 {[%emt 0:00:50]} Nd8 {[%emt 0:01:56]} 51. h4 {[%emt 0:02:49]} b6 {[%emt 0:09:18]} 52. h5 {[%emt 0:00:54]} Nf7 {[%emt 0:03:08]} 53. hxg6 {[%emt 0:00:19]} hxg6 {[%emt 0:00:02]} 54. Rh1 {[%emt 0:00:06]} Rh8 {[%emt 0:01:47]} 55. Rxh8 {[%emt 0:00:15]} Nxh8 {[%emt 0:00:01]} 56. Ne2 {[%emt 0:02:11]} Nf7 {[%emt 0:00:35]} 57. Nd4 {[%emt 0:00:10]} Nd8 {[%emt 0:00:37]} 58. Kc3 {[%emt 0:00:22]} Nb7 {[%emt 0:01:16]} 59. Ne6 {[%emt 0:00:42]} Ke7 {[%emt 0:03:03]} 60. Kb4 {[%emt 0:00:34]} Ke8 {[%emt 0:01:19]} 61. Kb5 {[%emt 0:00:32]} Na5 {[%emt 0:00:18]} 62. Kxb6 {[%emt 0:04:07]} Nxc4+ {[%emt 0:00:27]} 63. Kb5 {[%emt 0:00:42]} Ne3 {[%emt 0:01:00]} 64. Kc6 {[%emt 0:00:15]} Nc4 {[%emt 0:00:36]} 65. Nd4 {[%emt 0:01:36]} Ke7 {[%emt 0:00:32]} 66. Kc7 {[%emt 0:00:33]} Ke8 {[%emt 0:01:01]} 67. Nc6 {[%emt 0:00:40]} Nb2 {[%emt 0:01:59]} 68. a5 {[%emt 0:00:26]} Nd3 {[%emt 0:00:11]} 69. a6 {[%emt 0:00:27]} Nxf4 {[%emt 0:00:02]} 70. Kxd6 {[%emt 0:01:05]} 1-0

[Event "WTCC-50 2018"]
[Site "Radebeul"]
[Date "2018.07.09"]
[Round "3"]
[White "Schultz, Andreas"]
[Black "Kopp, Peter"]
[Result "1/2-1/2"]
[ECO "A46"]
[WhiteElo "2211"]
[BlackElo "2072"]
[Annotator "NA"]
[PlyCount "118"]
[EventDate "2018.07.07"]
[EventType "team-tourn"]
[EventCountry "GER"]
[SourceTitle "playchess.com"]
[Source "ChessBase"]
[SourceQuality "1"]
[TimeControl "40/5400+30:1800+30"]

1. d4 {[%emt 0:00:00]} Nf6 {[%emt 0:00:00]} 2. Nf3 {[%emt 0:00:00]} d6 {[%emt 0:00:00]} 3. c4 {[%emt 0:00:10]} Nbd7 {[%emt 0:00:20]} 4. Nc3 {[%emt 0:00:49]} e5 {[%emt 0:00:21]} 5. e3 {[%emt 0:00:27]} g6 {[%emt 0:01:41]} 6. Be2 {[%emt 0:00:20]} Bg7 {[%emt 0:00:05]} 7. O-O {[%emt 0:00:24]} O-O {[%emt 0:00:05]} 8. Qc2 {[%emt 0:01:02]} Re8 {[%emt 0:00:45]} 9. b4 {[%emt 0:00:40]} c6 {[%emt 0:01:41] E61: King's Indian: Early deviations for White, including Smyslov System} (9... Qe7 10. Bb2 e4 11. Nd2 h5 12. Rac1 h4 13. Rfd1 h3 14. g3 c6 15. Nb3 a6 16. d5 cxd5 17. Nxd5 Nxd5 18. Rxd5 Bxb2 19. Qxb2 {0-1 (41) Lalith,B (2537)-Yu,Y (2724) Caleta 2015}) 10. Bb2 {[%emt 0:02:47]} a5 {[%emt 0:04:16]} 11. a3 {[%emt 0:01:54]} axb4 $146 {[%emt 0:04:21]} ({Predecessor:} 11... Qc7 12. Rac1 Nf8 13. d5 Kh8 14. Rfd1 axb4 15. axb4 Bf5 16. e4 Bg4 17. Qb3 N6d7 18. Ra1 f5 19. Rxa8 Rxa8 20. Ng5 Bxe2 21. Nxe2 c5 22. exf5 gxf5 23. Ng3 Bf6 {½-½ (23) Birkenmaier,R (2152)-Kubik,M (1913) Senica 2011}) 12. axb4 {[%emt 0:00:28]} Rxa1 {[%emt 0:00:08]} 13. Rxa1 {[%emt 0:00:13]} exd4 {[%emt 0:04:30]} 14. Nxd4 {[%emt 0:07:21]} Nb6 {[%emt 0:14:49]} 15. Rd1 {[%emt 0:07:52]} Qc7 {[%emt 0:16:05]} 16. h3 {[%emt 0:10:45]} d5 {[%emt 0:01:40]} 17. cxd5 {[%emt 0:11:50]} Nfxd5 {[%emt 0:01:06]} 18. Nxd5 {[%emt 0:06:04]} Nxd5 {[%emt 0:00:20]} 19. Qb3 {[%emt 0:01:40]} Nb6 {[%emt 0:08:41]} 20. Rc1 {[%emt 0:11:33]} Qe7 {[%emt 0:04:01]} 21. Bf3 {[%emt 0:03:19]} Nd7 {[%emt 0:06:25]} 22. Qc3 {[%emt 0:05:50]} Qg5 {[%emt 0:03:53]} 23. Kf1 {[%emt 0:07:29]} h5 {[%emt 0:03:40]} 24. Be2 {[%emt 0:02:05]} Qe5 {[%emt 0:04:03]} 25. Nf3 {[%emt 0:02:37]} Qxc3 {[%emt 0:00:17]} 26. Bxc3 {[%emt 0:00:06]} Bxc3 {[%emt 0:01:55]} 27. Rxc3 {[%emt 0:00:04]} Nb6 {[%emt 0:01:43]} 28. Nd4 {[%emt 0:00:49]} Nd5 {[%emt 0:01:14]} 29. Rb3 {[%emt 0:00:21]} Bd7 {[%emt 0:00:41]} 30. Bf3 {[%emt 0:01:17]} Nc7 {[%emt 0:01:23]} 31. Ra3 {[%emt 0:01:11]} Ra8 {[%emt 0:00:56]} 32. Rxa8+ {[%emt 0:00:33]} Nxa8 {[%emt 0:00:02]} 33. Ke2 {[%emt 0:00:45]} Kf8 {[%emt 0:04:41]} 34. Nb3 {[%emt 0:05:43]} Ke7 {[%emt 0:01:50]} 35. Nc5 {[%emt 0:02:20]} Bc8 {[%emt 0:01:22]} 36. Kd3 {[%emt 0:00:14]} Kd6 {[%emt 0:00:45]} 37. Kd4 {[%emt 0:00:29]} Nc7 {[%emt 0:01:17]} 38. Ne4+ {[%emt 0:03:05]} Ke7 {[%emt 0:01:22]} 39. Nc5 {[%emt 0:01:59]} Nb5+ {[%emt 0:03:34]} 40. Kd3 {[%emt 0:01:19]} Nd6 {[%emt 0:01:58]} 41. h4 {[%emt 0:02:55]} Bd7 {[%emt 0:07:13]} 42. Bd1 {[%emt 0:15:25]} Bf5+ {[%emt 0:04:09]} 43. e4 {[%emt 0:00:37]} Be6 {[%emt 0:03:11]} 44. Nxe6 {[%emt 0:03:05]} Kxe6 {[%emt 0:00:10]} 45. f4 {[%emt 0:00:21]} f6 {[%emt 0:04:08]} 46. Bb3+ {[%emt 0:01:33]} Ke7 {[%emt 0:00:20]} 47. Ba4 {[%emt 0:00:54]} Nf7 {[%emt 0:01:42]} 48. Kd4 {[%emt 0:00:45]} Kd6 {[%emt 0:00:27]} 49. Bb3 {[%emt 0:00:31]} Nd8 {[%emt 0:00:29]} 50. g3 {[%emt 0:01:58]} b6 {[%emt 0:00:46]} 51. Bc2 {[%emt 0:00:36]} Nf7 {[%emt 0:03:25]} 52. Ke3 {[%emt 0:00:40]} Ke6 {[%emt 0:01:51]} 53. e5 {[%emt 0:01:17]} f5 {[%emt 0:01:06]} 54. Kd4 {[%emt 0:01:11]} Nd8 {[%emt 0:00:23]} 55. Kc4 {[%emt 0:00:57]} Kd7 {[%emt 0:00:53]} 56. Bb3 {[%emt 0:00:35]} Ne6 {[%emt 0:01:17]} 57. Kd3 $14 {[%emt 0:00:12]} Ke7 {[%emt 0:01:06]} 58. Ke3 {[%emt 0:00:12]} Kd7 {[%emt 0:00:14]} 59. Bc2 {[%emt 0:00:11]} Ke7 {[%emt 0:00:06]} 1/2-1/2